bitfinex-derivatives/quotes_ETHF0:USTF0_20250614
["timestamp","ask_amount","ask_price","bid_price","bid_amount"]
[1749906272704,0.07398081,2544.8,2544.7,2.34323651]
[1749906272906,0.07398081,2544.8,2544.7,5.55103651]
[1749906273405,0.07398081,2544.8,2544.7,3.99344]
[1749906274910,0.07398081,2544.8,2544.7,5.55086889]
[1749906275302,0.07398081,2544.8,2544.7,3.99344]
[1749906275604,0.07398081,2544.8,2544.7,5.55066872]
[1749906276808,0.07398081,2544.8,2544.7,3.99344]
[1749906277005,0.07398081,2544.8,2544.7,5.55009261]
[1749906277208,0.07398081,2544.8,2544.7,3.99344]
[1749906277709,0.85959081,2544.8,2544.7,5.55014726]
[1749906277901,0.07398081,2544.8,2544.7,2.34234726]
[1749906278305,3.2078,2545.3,2545.1,0.7855]
[1749906278512,0.78551,2545.2,2545.1,0.7855]
[1749906278711,0.78553,2545.1,2545.0,0.78553]
[1749906278901,3.2078,2545.3,2544.9,1.55638212]
[1749906278902,0.78555,2545.0,2544.9,2.34194212]
[1749906279207,3.2078,2545.3,2544.8,2.34198212]
[1749906279208,0.78558,2544.9,2544.8,2.34198212]
[1749906279713,0.78558,2545.0,2544.9,0.78558]
[1749906279897,2.05008,2545.0,2544.9,0.78558]
[1749906280211,0.7856,2544.9,2544.8,0.7856]
[1749906280406,0.78559,2544.9,2544.8,0.78559]
[1749906280610,1.2645,2545.0,2544.6,6.73423025]
[1749906280916,0.00588813,2545.1,2545.0,0.78555]
[1749906281609,0.00588813,2545.1,2545.0,1.45925]
[1749906282011,0.00588813,2545.1,2545.0,2.10715]
[1749906284415,0.79142813,2545.1,2545.0,0.78555]
[1749906286215,0.00588813,2545.1,2545.0,0.78555]
[1749906287907,0.79140813,2545.1,2545.0,0.78555]
[1749906288108,0.00588813,2545.1,2545.0,0.78555]
[1749906288316,0.79140813,2545.1,2545.0,0.78555]
[1749906288509,0.00588813,2545.1,2545.0,0.78555]
[1749906289414,0.7856,2544.9,2544.8,0.78559]
[1749906290017,0.78562,2544.8,2544.7,0.78562]
[1749906290217,0.7856,2544.9,2544.8,0.78559]
[1749906290713,3.28178081,2545.1,2545.0,0.78555]
[1749906290920,10.30778081,2545.1,2545.0,0.78555]
[1749906291112,7.09998081,2545.1,2545.0,0.78555]
[1749906291313,0.07398081,2545.1,2545.0,0.78555]
[1749906292017,0.07398081,2545.1,2545.0,2.04325]
[1749906295316,0.07398081,2545.1,2545.0,3.59963212]
[1749906295518,0.85950081,2545.1,2545.0,1.55638212]
[1749906295821,0.78555,2545.0,2544.9,2.34196212]
[1749906296021,0.07398081,2545.1,2544.8,0.6323]
[1749906296022,0.78558,2544.9,2544.8,2.18868212]
[1749906296217,0.78558,2544.9,2544.8,0.6323]
[1749906296513,0.78557,2545.0,2544.9,0.78556]
[1749906297409,0.78558,2544.9,2544.8,1.41789]
[1749906297820,3.28178081,2545.1,2544.8,0.6323]
[1749906298119,3.28178081,2545.1,2545.0,0.78555]
[1749906300618,0.78555,2545.0,2544.9,1.55638212]
[1749906300922,4.06731081,2545.1,2545.0,0.78555]
[1749906301219,3.28178081,2545.1,2545.0,0.78555]
[1749906301620,3.28178081,2545.1,2545.0,2.83755]
[1749906302222,0.7854,2545.6,2545.1,1.96376]
[1749906302420,0.7854,2545.6,2545.5,0.78538]
[1749906302722,8.45966,2545.7,2545.6,0.78537]
[1749906302926,0.78539,2545.6,2545.5,0.78538]
[1749906303420,0.7854,2545.5,2545.4,3.2078]
[1749906303620,2.16,2545.5,2545.4,3.2078]
[1749906303819,2.16,2545.5,2545.4,3.99323]
[1749906304216,0.7854,2545.5,2545.4,3.2078]
[1749906304521,0.7854,2545.5,2545.4,3.99323]
[1749906305018,0.78539,2545.6,2545.5,0.78539]
[1749906306322,0.7854,2545.5,2545.4,3.99321]
[1749906306515,0.7854,2545.5,2545.4,3.2078]
[1749906306722,0.78543,2545.4,2545.3,0.78543]
[1749906307114,7.026,2545.6,2545.1,5.17158]
[1749906307314,0.7854,2545.5,2545.4,0.78543]
[1749906307623,0.78543,2545.4,2545.3,3.99323]
[1749906307819,0.78543,2545.4,2545.3,3.2078]
[1749906308616,7.65943,2545.4,2545.3,3.2078]
[1749906309525,0.78552,2545.2,2545.0,3.2078]
[1749906309721,0.78552,2545.2,2545.1,0.78552]
[1749906310614,0.78552,2545.1,2545.0,3.99334]
[1749906310919,0.85361268,2545.1,2545.0,3.2078]
[1749906311613,2.13641268,2545.1,2545.0,3.2078]
[1749906313228,1.35089268,2545.1,2544.6,5.43168465]
[1749906313438,0.78559,2544.9,2544.8,0.78559]
[1749906313922,0.78563,2544.8,2544.7,0.78563]
[1749906314222,0.78564,2544.7,2544.6,3.87778813]
[1749906314524,0.78564,2544.7,2544.6,3.21368813]
[1749906315024,0.78564,2544.7,2544.6,3.99935813]
[1749906315423,0.78564,2544.7,2544.6,3.21368813]
[1749906316325,7.65964,2544.7,2544.6,3.21368813]
[1749906319023,17.04596,2544.7,2544.1,3.2078]
[1749906319226,0.78578,2544.3,2544.2,0.78578]
[1749906319432,0.7858,2544.2,2544.1,3.2078]
[1749906319635,0.7858,2544.2,2544.1,3.99363]
[1749906320329,7.66079,2544.3,2544.2,0.7858]
[1749906321333,6.875,2544.3,2544.2,0.7858]
[1749906322334,7.66077,2544.3,2544.2,0.7858]
[1749906324941,0.7858,2544.2,2544.1,3.99361]
[1749906325939,6.875,2544.3,2544.2,0.7858]
[1749906325940,7.6608,2544.3,2544.2,0.7858]
[1749906326637,0.7858,2544.2,2544.1,3.99362]
[1749906329429,0.7858,2544.2,2544.1,3.99363]
[1749906329633,0.7858,2544.2,2544.1,3.2078]
[1749906329839,0.78583,2544.1,2544.0,0.78585]
[1749906330140,0.78582,2544.2,2544.1,0.78581]
[1749906330941,0.78585,2544.1,2544.0,0.78583]
[1749906331247,0.78582,2544.2,2544.1,0.78581]
[1749906331443,0.78585,2544.1,2544.0,0.78584]
[1749906336250,0.85394268,2544.1,2544.0,0.78584]
[1749906336449,0.85394268,2544.1,2543.9,0.65338813]
[1749906336644,0.78586,2544.0,2543.9,0.00588813]
[1749906336845,0.78586,2544.0,2543.9,0.79177813]
[1749906337454,0.78586,2544.0,2543.9,0.00588813]
[1749906337655,0.78586,2544.0,2543.9,0.79177813]
[1749906339044,0.78586,2544.0,2543.9,0.00588813]
[1749906339758,0.78586,2544.0,2543.9,0.79177813]
[1749906342058,0.78586,2544.0,2543.9,0.00588813]
[1749906343863,0.78586,2544.0,2543.9,0.79177813]
[1749906344164,0.78586,2544.0,2543.9,0.00588813]
[1749906344964,2.15836,2544.0,2543.9,0.00588813]
[1749906350468,2.22645268,2544.0,2543.9,0.00588813]
[1749906351568,7.54095268,2544.0,2543.9,0.00588813]
[1749906352464,7.54095268,2544.0,2543.9,0.79177813]
[1749906355374,0.85395268,2544.0,2543.9,0.79177813]
[1749906355573,7.54095268,2544.0,2543.9,0.79177813]
[1749906356073,7.54095268,2544.0,2543.9,0.00588813]
[1749906356477,0.85395268,2544.0,2543.9,0.00588813]
[1749906356668,7.54095268,2544.0,2543.9,0.00588813]
[1749906357075,7.54095268,2544.0,2543.9,0.79177813]
[1749906357375,7.54095268,2544.0,2543.9,0.00588813]
[1749906358572,7.54095268,2544.0,2543.9,0.79177813]
[1749906358773,7.54095268,2544.0,2543.9,0.00588813]
[1749906358973,7.54095268,2544.0,2543.9,0.79177813]
[1749906359372,0.06809268,2544.0,2543.9,0.00588813]
[1749906359572,0.06809268,2544.0,2543.9,0.79177813]
[1749906359773,0.06809268,2544.0,2543.9,8.99957813]
[1749906360381,0.06809268,2544.0,2543.9,8.23834229]
[1749906361073,0.00588813,2544.4,2544.2,0.78577]
[1749906361074,0.78579,2544.3,2544.2,0.78577]
[1749906361782,0.78579,2544.3,2544.2,2.05117]
[1749906362177,0.78579,2544.3,2544.2,3.2173092]
[1749906362479,7.47764813,2544.4,2544.3,0.78577]
[1749906362881,0.79164813,2544.4,2544.3,0.78577]
[1749906363079,0.79164813,2544.4,2544.3,1.9519092]
[1749906363281,0.79164813,2544.4,2544.3,0.78577]
[1749906363691,0.79164813,2544.4,2544.3,2.02827]
[1749906364278,0.79162813,2544.4,2544.3,2.02827]
[1749906364484,0.00588813,2544.4,2544.3,2.02827]
[1749906364677,0.79162813,2544.4,2544.3,2.02827]
[1749906365483,0.00588813,2544.4,2544.3,2.02827]
[1749906365981,0.00588813,2544.4,2544.3,7.02827]
[1749906366182,0.00588813,2544.4,2544.3,10.23607]
[1749906367378,0.00588813,2544.4,2544.3,11.78771331]
[1749906370481,0.00588813,2544.4,2544.3,34.80907]
[1749906372887,0.00588813,2544.4,2544.3,6.39766073]
[1749906373074,0.00588813,2544.4,2544.3,30.96766073]
[1749906373684,0.79162813,2544.4,2544.3,30.96766073]
[1749906374184,0.79162813,2544.4,2544.3,3.99357]
[1749906376587,0.00588813,2544.4,2544.3,3.99357]
[1749906377390,0.79162813,2544.4,2544.3,4.67897]
[1749906377690,0.00588813,2544.4,2544.3,4.67897]
[1749906378190,0.79162813,2544.4,2544.3,4.67897]
[1749906378390,0.00588813,2544.4,2544.3,4.67897]
[1749906378594,0.78563,2544.8,2544.7,0.78564]
[1749906382286,0.78563,2544.8,2544.7,1.44944]
[1749906387083,0.78563,2544.8,2544.7,0.78564]
[1749906387282,0.78564,2544.7,2544.6,3.2078]
[1749906387588,1.96427,2544.5,2544.1,1.16181733]
[1749906387784,1.96427,2544.5,2543.9,5.54752993]
[1749906387785,13.65335,2544.4,2543.9,1.16770546]
[1749906387992,0.78586,2544.0,2543.9,0.00588813]
[1749906388192,10.53766,2544.0,2543.9,0.00588813]
[1749906388491,0.78603,2543.5,2543.4,0.78605]
[1749906388689,0.78605,2543.4,2543.3,5.54550331]
[1749906388889,0.78604,2543.5,2543.3,3.99386]
[1749906389094,0.78605,2543.4,2543.2,2.18264331]
[1749906389304,0.78603,2543.5,2543.3,0.78606]
[1749906389799,0.78605,2543.4,2543.3,0.78606]
[1749906390700,0.67758813,2543.6,2543.2,0.78609]
[1749906390891,0.7861,2543.3,2543.1,0.78612]
[1749906391205,0.78606,2543.4,2543.2,0.78611]
[1749906391397,0.78606,2543.4,2543.3,0.78608]
[1749906391794,0.78606,2543.4,2543.2,0.78609]
[1749906392199,0.78608,2543.3,2543.2,0.78609]
[1749906392890,1.3287,2543.5,2543.0,4.54568813]
[1749906393091,0.78608,2543.3,2543.2,0.78608]
[1749906393497,0.78606,2543.4,2543.3,0.78607]
[1749906394405,0.00588813,2543.6,2543.5,0.78601]
[1749906397296,0.79186813,2543.6,2543.5,0.78601]
[1749906397695,0.78601,2543.5,2543.4,1.46713]
[1749906398402,0.78605,2543.4,2543.3,3.99386]
[1749906399203,0.85414268,2543.4,2543.3,3.99386]
[1749906400209,0.85414268,2543.4,2543.3,3.2078]
[1749906400706,0.78611,2543.2,2543.1,0.78613]
[1749906403404,0.78614,2543.1,2543.0,4.68273813]
[1749906406194,0.78614,2543.2,2543.1,0.78612]
[1749906407106,0.78614,2543.1,2543.0,4.68272813]
[1749906408197,0.6639,2543.3,2543.0,4.68272813]
[1749906408198,0.78613,2543.2,2543.1,0.78611]
[1749906408603,1.45,2543.3,2543.2,0.78611]
[1749906408906,0.85415268,2543.4,2543.3,0.78608]
[1749906409301,0.78606,2543.4,2543.3,0.78608]
[1749906411106,0.78609,2543.3,2543.2,0.78607]
[1749906411507,0.78607,2543.4,2543.3,0.78605]
[1749906412706,0.78603,2543.5,2543.4,0.78602]
[1749906414398,0.78608,2543.4,2543.3,0.78605]
[1749906414600,0.78603,2543.5,2543.4,0.78601]
[1749906416113,0.78609,2543.4,2543.3,0.78606]
[1749906416406,0.78609,2543.4,2543.0,3.89658813]
[1749906416407,0.78614,2543.1,2543.0,4.68272813]
[1749906417509,0.85422268,2543.2,2543.1,0.78614]
[1749906418703,0.06809268,2543.2,2543.1,0.78614]
[1749906419008,0.85420268,2543.2,2543.1,0.78614]
[1749906419412,0.06809268,2543.2,2543.1,0.78614]
[1749906419712,0.85420268,2543.2,2543.1,0.78614]
[1749906419907,0.06809268,2543.2,2543.1,0.78614]
[1749906420403,0.85420268,2543.2,2543.1,0.78614]
[1749906420599,0.06809268,2543.2,2543.1,0.78614]
[1749906421220,0.85420268,2543.2,2543.1,0.78614]
[1749906422414,0.06809268,2543.2,2543.1,0.78614]
[1749906422804,0.85420268,2543.2,2543.1,0.78614]
[1749906423110,0.06809268,2543.2,2543.1,0.78614]
[1749906423609,7.18598813,2543.6,2543.1,0.78614]
[1749906423610,0.7861,2543.3,2543.2,0.78608]
[1749906427515,0.78607,2543.4,2543.3,0.78604]
[1749906428915,0.78607,2543.4,2543.1,2.84004331]
[1749906428916,0.78611,2543.3,2543.2,0.78608]
[1749906430410,0.78611,2543.2,2543.1,2.33777331]
[1749906430611,0.85420268,2543.2,2543.1,2.33777331]
[1749906431416,0.06809268,2543.2,2543.1,2.33777331]
[1749906431617,0.06809268,2543.2,2543.1,0.78613]
[1749906431816,0.06809268,2543.2,2543.1,2.34035552]
[1749906432017,0.06809268,2543.2,2543.1,0.78613]
[1749906432218,0.06809268,2543.2,2543.1,2.34037252]
[1749906433718,0.85420268,2543.2,2543.1,2.34037252]
[1749906436713,0.85420268,2543.2,2543.1,1.55424252]
[1749906437018,0.78614,2543.1,2543.0,0.00588813]
[1749906437218,5.92214,2543.1,2543.0,0.00588813]
[1749906437520,5.92214,2543.1,2543.0,8.808e-05]
[1749906438017,0.629,2543.1,2543.0,0.78625808]
[1749906438223,0.85420268,2543.2,2543.1,0.78614]
[1749906438417,0.06809268,2543.2,2543.0,8.808e-05]
[1749906438616,0.85421268,2543.2,2543.1,0.78614]
[1749906438916,0.06809268,2543.2,2543.1,0.78614]
[1749906439118,0.85420268,2543.2,2543.1,0.78614]
[1749906440624,0.06809268,2543.2,2543.1,0.78614]
[1749906440829,0.7861,2543.3,2543.2,0.78611]
[1749906441317,0.78614,2543.1,2543.0,2.3404906]
[1749906441510,0.78614,2543.1,2543.0,0.78624808]
[1749906441914,0.85423268,2543.2,2543.1,0.78614]
[1749906442917,0.78614,2543.2,2543.1,0.78614]
[1749906443725,0.85423268,2543.2,2543.1,0.78614]
[1749906445221,0.06809268,2543.2,2543.1,0.78614]
[1749906445421,0.06809268,2543.2,2543.1,6.89668252]
[1749906445815,1.42976,2543.4,2543.3,0.78608]
[1749906446617,1.42976,2543.4,2543.1,6.11054252]
[1749906446618,0.78604,2543.5,2543.4,0.78602]
[1749906446815,7.31604,2543.5,2543.4,0.78602]
[1749906447423,0.78605,2543.4,2543.3,1.40995]
[1749906447723,0.78605,2543.4,2543.3,0.6239]
[1749906447924,0.78608,2543.3,2543.2,0.78609]
[1749906448125,1.41078,2543.3,2543.2,0.78609]
[1749906452928,0.85420268,2543.2,2543.1,5.38594252]
[1749906453331,0.85420268,2543.2,2543.1,6.17208252]
[1749906454619,0.85420268,2543.2,2543.1,5.38594252]
[1749906454824,0.85420268,2543.2,2543.1,3.8317]
[1749906455025,0.78611,2543.2,2543.1,3.8317]
[1749906455429,0.78611,2543.2,2543.1,4.61784]
[1749906456930,0.78611,2543.2,2543.1,3.2078]
[1749906457135,0.78614,2543.1,2543.0,0.78623808]
[1749906457637,0.78614,2543.1,2543.0,8.808e-05]
[1749906461435,0.78612,2543.2,2543.1,0.78611]
[1749906462631,0.06809268,2543.3,2543.2,0.78611]
[1749906462829,0.06809268,2543.3,2543.2,3.99391]
[1749906463735,0.85417268,2543.3,2543.2,3.99391]
[1749906464534,0.06809268,2543.3,2543.2,3.99391]
[1749906465430,0.06809268,2543.3,2543.2,5.29591]
[1749906467029,0.06809268,2543.3,2543.2,6.85015252]
[1749906469825,0.06809268,2543.3,2543.2,5.29591]
[1749906470228,0.79188813,2543.6,2543.5,0.78601]
[1749906470826,0.78604,2543.5,2543.4,0.78601]
[1749906471824,0.79189813,2543.6,2543.5,0.78601]
[1749906472237,0.78605,2543.5,2543.4,0.78604]
[1749906474840,0.79189813,2543.6,2543.5,0.78601]
[1749906482646,0.00588813,2543.6,2543.5,0.78601]
[1749906483150,0.00588813,2543.6,2543.5,5.54935058]
[1749906483451,0.00588813,2543.6,2543.5,5.24821]
[1749906483844,0.00588813,2543.6,2543.5,7.5820518]
[1749906484949,3.99365,2544.1,2544.0,0.78586]
[1749906485248,3.2078,2544.1,2544.0,0.78586]
[1749906485454,3.99363,2544.1,2544.0,0.78586]
[1749906485757,0.78589,2543.9,2543.8,0.6279]
[1749906485954,0.78595,2543.7,2543.6,1.43957]
[1749906486152,0.78595,2543.7,2543.6,2.06747]
[1749906486353,1.46795,2543.8,2543.7,0.78595]
[1749906488454,6.44447813,2544.1,2544.0,0.78586]
[1749906488455,0.79174813,2544.1,2544.0,0.78586]
[1749906490055,0.78588,2544.0,2543.9,0.78587]
[1749906490248,0.79172813,2544.1,2544.0,0.78586]
[1749906490560,0.00588813,2544.1,2544.0,0.78586]
[1749906491351,0.79171813,2544.1,2544.0,0.78586]
[1749906491749,0.00588813,2544.1,2544.0,0.78586]
[1749906493849,0.00588813,2544.1,2544.0,1.47346]
[1749906494555,0.07398081,2544.1,2544.0,1.47346]
[1749906495549,0.00588813,2544.1,2544.0,1.47346]
[1749906496058,0.78574,2544.5,2544.4,0.78572]
[1749906496654,0.78568,2544.6,2544.5,0.78566]
[1749906498563,0.78571,2544.5,2544.4,1.41881]
[1749906498759,1.43631,2544.5,2544.4,1.41881]
[1749906499061,0.6506,2544.5,2544.4,1.41881]
[1749906499259,0.6506,2544.5,2544.4,0.6331]
[1749906499555,0.78574,2544.4,2544.3,0.00588813]
[1749906499951,1.50442268,2544.5,2544.4,0.78574]
[1749906500747,1.43633,2544.5,2544.4,0.78574]
[1749906501463,0.78574,2544.4,2544.3,0.79162813]
[1749906501753,0.78574,2544.4,2544.3,0.00588813]
[1749906501958,2.11584,2544.4,2544.3,0.00588813]
[1749906502353,5.32364,2544.4,2544.3,0.00588813]
[1749906504158,0.78586,2544.0,2543.9,3.2078]
[1749906504359,0.78586,2544.0,2543.9,3.99369]
[1749906504562,0.78578,2544.3,2544.2,0.78578]
[1749906505259,0.78576,2544.4,2544.3,0.78577]
[1749906505561,7.28976,2544.4,2544.3,0.78577]
[1749906508356,6.504,2544.4,2544.1,0.6657]
[1749906508561,6.504,2544.4,2544.0,0.00588813]
[1749906508562,0.78583,2544.1,2544.0,0.00588813]
[1749906508758,0.78583,2544.1,2544.0,0.79174813]
[1749906509757,0.78582,2544.2,2544.1,0.7858]
[1749906511458,0.78583,2544.1,2544.0,0.00588813]
[1749906511657,3.39593,2544.1,2544.0,0.00588813]
[1749906513364,1.96481,2543.8,2543.3,1.55165136]
[1749906513555,1.96481,2543.8,2543.2,6.1693418]
[1749906513556,1.96498,2543.6,2543.2,5.38715136]
[1749906513760,0.78608,2543.3,2543.2,4.62159]
[1749906514160,0.78608,2543.3,2543.2,3.2078]
[1749906514860,7.29108,2543.3,2543.2,3.2078]
[1749906515057,0.78614,2543.1,2543.0,0.00588813]
[1749906515561,0.78614,2543.1,2543.0,0.79205813]
[1749906515764,2.08593,2543.2,2543.1,0.78614]
[1749906516067,0.78614,2543.1,2543.0,0.79203813]
[1749906516563,0.78614,2543.1,2543.0,0.00588813]
[1749906519771,0.78614,2543.1,2543.0,0.79205813]
[1749906520873,1.2998,2543.2,2543.1,0.78614]
[1749906522471,0.78613,2543.2,2543.1,0.78614]
[1749906522671,7.27913,2543.2,2543.1,0.78614]
[1749906527179,0.6652,2543.3,2543.2,0.78611]
[1749906527474,0.78608,2543.3,2543.2,0.78611]
[1749906528585,7.28008,2543.4,2543.3,0.78605]
[1749906530177,0.78611,2543.3,2543.2,0.78609]
[1749906532381,0.78614,2543.2,2543.1,0.78612]
[1749906533382,0.78614,2543.1,2543.0,0.79203813]
[1749906534683,0.78614,2543.1,2543.0,0.00588813]
[1749906535989,0.78614,2543.1,2543.0,0.79205813]
[1749906537382,0.78614,2543.1,2543.0,0.00588813]
[1749906538890,0.78614,2543.1,2543.0,0.79205813]
[1749906540183,0.78614,2543.1,2543.0,0.00588813]
[1749906540588,0.78614,2543.1,2543.0,0.79205813]
[1749906540988,0.78614,2543.1,2543.0,0.00588813]
[1749906541185,2.14314,2543.1,2543.0,0.00588813]
[1749906541603,0.78629,2542.6,2542.5,0.6767]
[1749906542305,0.78635,2542.4,2542.3,0.628]
[1749906543097,0.78635,2542.4,2542.3,1.41439]
[1749906543600,8.4404,2542.7,2542.5,0.78629]
[1749906543601,7.28031,2542.6,2542.5,0.78629]
[1749906544195,7.28131,2542.6,2542.5,0.78629]
[1749906545299,0.78635,2542.4,2542.3,1.41437]
[1749906547203,0.78635,2542.4,2542.3,0.78637]
[1749906547405,0.78639,2542.3,2542.2,4.65089]
[1749906548305,0.78638,2542.4,2542.3,0.78637]
[1749906549005,0.78639,2542.3,2542.2,4.6509]
[1749906549303,1.43039,2542.3,2542.2,3.2078]
[1749906549898,1.43039,2542.3,2542.2,3.99422]
[1749906551404,1.43039,2542.3,2542.2,3.2078]
[1749906555005,1.43039,2542.3,2541.6,0.78659]
[1749906555006,33.3378,2542.3,2541.6,0.78659]
[1749906555306,0.78647,2542.1,2541.5,2.61465]
[1749906555510,6.482,2542.0,2541.9,0.78651]
[1749906555699,7.26848,2542.0,2541.9,0.78651]
[1749906556300,0.78651,2541.9,2541.8,1.42702]
[1749906556615,0.78654,2541.8,2541.7,0.00408593]
[1749906557407,0.78654,2541.8,2541.7,0.79065593]
[1749906558914,0.78654,2541.8,2541.7,0.00408593]
[1749906559103,0.78654,2541.8,2541.7,0.79065593]
[1749906559508,1.45033,2541.9,2541.7,0.79065593]
[1749906559708,1.45033,2541.9,2541.8,0.78654]
[1749906560013,1.45031,2541.9,2541.8,0.78654]
[1749906561014,0.78654,2541.8,2541.7,0.79064593]
[1749906562117,1.45033,2541.9,2541.8,0.78654]
[1749906562708,0.78654,2541.8,2541.7,0.79064593]
[1749906562913,6.483,2541.9,2541.8,0.78654]
[1749906563110,0.78646,2542.1,2542.0,0.78645]
[1749906563605,0.7865,2542.0,2541.9,0.78649]
[1749906564015,0.78646,2542.1,2542.0,0.78645]
[1749906565318,0.78651,2542.0,2541.9,0.78649]
[1749906565518,7.26951,2542.0,2541.9,0.78649]
[1749906572820,0.68569982,2542.2,2541.8,2.60495]
[1749906573026,6.48889982,2542.2,2542.1,0.78645]
[1749906574328,0.00589982,2542.2,2542.1,0.78645]
[1749906574521,0.00589982,2542.2,2542.1,2.08155]
[1749906575118,0.78645,2542.1,2542.0,3.2078]
[1749906575428,0.78651,2541.9,2541.8,1.42511]
[1749906575624,0.78651,2541.9,2541.8,1.42514]
[1749906575824,0.78651,2541.9,2541.8,0.6386]
[1749906576026,0.78651,2541.9,2541.8,1.42514]
[1749906576232,7.2695,2542.0,2541.9,0.78651]
[1749906578826,0.78651,2541.9,2541.8,2.69882]
[1749906579133,0.78651,2541.9,2541.8,1.42512]
[1749906580130,0.78654,2541.8,2541.7,3.21188593]
[1749906581426,0.78654,2541.8,2541.7,0.00408593]
[1749906582335,0.78654,2541.8,2541.7,7.625e-05]
[1749906582830,1.47244,2541.8,2541.7,7.625e-05]
[1749906584436,7.94244,2541.8,2541.7,7.625e-05]
[1749906584831,9.24414,2541.8,2541.7,7.625e-05]
[1749906586726,7.94244,2541.8,2541.7,7.625e-05]
[1749906588035,9.24704,2541.8,2541.7,7.625e-05]
[1749906588638,7.94244,2541.8,2541.7,7.625e-05]
[1749906589635,9.27674,2541.8,2541.7,7.625e-05]
[1749906590339,2.80674,2541.8,2541.7,7.625e-05]
[1749906590639,9.27674,2541.8,2541.7,7.625e-05]
[1749906595142,0.78666,2541.4,2541.3,0.6609]
[1749906596541,0.78666,2541.4,2541.3,1.44759]
[1749906597341,0.78666,2541.4,2541.3,0.6609]
[1749906598449,0.78666,2541.4,2541.3,1.44759]
[1749906601245,0.78659,2541.7,2541.6,0.78657]
[1749906601436,6.471,2541.8,2541.4,2.92635136]
[1749906601640,0.78659,2541.7,2541.6,0.78657]
[1749906601849,0.78659,2541.7,2541.6,1.46487]
[1749906602045,7.25757,2541.8,2541.7,0.78657]
[1749906602241,7.25757,2541.8,2541.7,2.16127]
[1749906603051,0.78653,2541.9,2541.8,0.78651]
[1749906604445,9.6788,2542.0,2541.7,1.3747]
[1749906604740,0.78654,2541.8,2541.7,2.16124]
[1749906605141,0.7865,2542.0,2541.9,0.7865]
[1749906605347,0.78651,2541.9,2541.8,2.02582]
[1749906606441,0.78651,2541.9,2541.8,1.2393]
[1749906606637,0.78651,2541.9,2541.8,2.02584]
[1749906608750,1.97197982,2542.2,2541.8,1.2393]
[1749906608751,0.00589982,2542.2,2541.8,1.2393]
[1749906608943,0.00589982,2542.2,2542.1,0.78644]
[1749906609449,0.00589982,2542.2,2542.1,3.99424]
[1749906609652,0.00589982,2542.2,2542.1,5.88484]
[1749906612858,0.79230982,2542.2,2542.1,5.88484]
[1749906613453,0.00589982,2542.2,2542.1,5.88484]
[1749906613653,0.79230982,2542.2,2542.1,5.88484]
[1749906614156,0.00589982,2542.2,2542.1,5.88484]
[1749906614354,0.79230982,2542.2,2542.1,5.88484]
[1749906615151,0.79230982,2542.2,2542.1,3.8367]
[1749906615353,0.8604025,2542.2,2542.1,3.2078]
[1749906616457,0.79230982,2542.2,2542.1,3.2078]
[1749906617462,0.78648,2542.0,2541.9,0.78648]
[1749906617848,0.00589982,2542.2,2542.1,0.78645]
[1749906618364,0.79230982,2542.2,2542.1,0.78645]
[1749906618663,0.00589982,2542.2,2542.1,0.78645]
[1749906618857,0.00589982,2542.2,2542.1,1.44765]
[1749906619162,0.79230982,2542.2,2542.1,1.44765]
[1749906619355,0.79230982,2542.2,2542.1,0.6612]
[1749906619657,0.78651,2541.9,2541.8,1.47383]
[1749906619851,0.78651,2541.9,2541.8,2.13503]
[1749906620460,0.78651,2541.9,2541.8,1.3485]
[1749906621053,0.78654,2541.8,2541.7,3.99437]
[1749906621258,0.78654,2541.9,2541.8,0.78652]
[1749906622261,0.7865,2542.0,2541.9,0.78648]
[1749906629559,2.0792,2542.0,2541.9,0.78648]
[1749906630063,0.78654,2541.9,2541.8,0.78652]
[1749906630263,2.07924,2541.9,2541.8,0.78652]
[1749906631764,0.78654,2541.8,2541.7,1.55165136]
[1749906631963,3.21747,2541.8,2541.4,5.54611136]
[1749906632158,0.78663,2541.5,2541.4,5.54611136]
[1749906632367,0.78663,2541.5,2541.4,3.99446]
[1749906633167,0.78663,2541.5,2541.4,0.78666]
[1749906633365,2.5888,2541.7,2541.4,3.2078]
[1749906633667,3.37539,2541.7,2541.6,0.7866]
[1749906635269,2.5888,2541.7,2541.4,3.2078]
[1749906635567,3.37539,2541.7,2541.6,0.7866]
[1749906637567,2.12429,2541.7,2541.6,0.7866]
[1749906640171,0.78655,2541.8,2541.7,0.78654]
[1749906640373,0.78655,2541.8,2541.5,0.6242]
[1749906640374,7.89273,2541.9,2541.8,0.78654]
[1749906640674,6.456,2541.9,2541.8,0.78654]
[1749906641667,7.24251,2541.9,2541.8,0.78654]
[1749906643876,6.456,2541.9,2541.8,0.78654]
[1749906644178,6.44889982,2542.2,2542.1,0.78644]
[1749906644673,0.00589982,2542.2,2542.1,0.78644]
[1749906645477,0.00589982,2542.2,2542.1,7.51829136]
[1749906649582,0.00589982,2542.2,2542.1,5.96664]
[1749906651185,0.00589982,2542.2,2542.1,6.16679136]
[1749906651392,0.00589982,2542.2,2542.1,3.99425]
[1749906651688,0.68939982,2542.2,2542.1,3.99425]
[1749906651995,0.00589982,2542.2,2542.1,3.99425]
[1749906652389,0.79230982,2542.2,2542.1,3.99425]
[1749906653594,0.00589982,2542.2,2542.1,3.99425]
[1749906654595,0.79230982,2542.2,2542.1,3.99425]
[1749906658199,0.79230982,2542.2,2542.1,3.2078]
[1749906658796,0.78648,2542.0,2541.9,0.7865]
[1749906659893,0.78651,2541.9,2541.8,5.54596136]
[1749906660088,0.78651,2541.9,2541.8,3.99431]
[1749906661593,0.78654,2541.8,2541.7,0.6345]
[1749906662196,0.7866,2541.6,2541.5,3.2078]
[1749906662490,0.78659,2541.7,2541.5,3.2078]
[1749906662690,0.78659,2541.7,2541.6,0.78657]
[1749906663489,0.78656,2541.8,2541.7,0.78654]
[1749906666596,0.78654,2541.8,2541.7,0.78654]
[1749906667696,0.78651,2541.9,2541.8,0.78651]
[1749906668907,6.442,2542.0,2541.9,0.78651]
[1749906669099,0.64469982,2542.2,2542.1,0.78645]